[Event "Late-Titled-Tuesday-Blitz-April-30-2024"]
[Site "Chess.com"]
[Date "2024.04.30"]
[Round "6"]
[White "Binary010"]
[Black "IlanSchnaider"]
[Result "1-0"]
[WhiteElo "2925"]
[BlackElo "2741"]
[TimeControl "180+1"]
[EndTime "15:08:42 PDT"]
[Termination "Binary010 won by checkmate"]

1. e4 {[%clk 0:03:00.9]} 1... c5 {[%clk 0:02:59.8]} 2. Nf3 {[%clk 0:03:00.8]}
2... d6 {[%clk 0:03:00.5]} 3. d4 {[%clk 0:03:00.8]} 3... cxd4 {[%clk 0:03:01.4]}
4. Nxd4 {[%clk 0:03:01.7]} 4... Nf6 {[%clk 0:03:02.1]} 5. Nc3 {[%clk 0:03:02.3]}
5... a6 {[%clk 0:03:02.8]} 6. Rg1 {[%clk 0:03:01.9]} 6... e5 {[%clk 0:03:02.2]}
7. Nb3 {[%clk 0:03:02.2]} 7... b5 {[%clk 0:03:03]} 8. a4 {[%clk 0:02:58.8]} 8...
b4 {[%clk 0:03:02.6]} 9. Nd5 {[%clk 0:02:59.1]} 9... Bb7 {[%clk 0:03:01.8]} 10.
Bg5 {[%clk 0:02:39.5]} 10... Nbd7 {[%clk 0:03:01.3]} 11. Bc4 {[%clk 0:02:34.5]}
11... Be7 {[%clk 0:02:56.5]} 12. Nxe7 {[%clk 0:02:24]} 12... Qxe7 {[%clk
0:02:55.8]} 13. f3 {[%clk 0:01:49.1]} 13... h6 {[%clk 0:02:55.8]} 14. Bh4 {[%clk
0:01:46.3]} 14... Rc8 {[%clk 0:02:35.1]} 15. Qd3 {[%clk 0:01:40.9]} 15... O-O
{[%clk 0:02:30.6]} 16. Na5 {[%clk 0:01:36.5]} 16... Nb6 {[%clk 0:02:11.1]} 17.
Bb3 {[%clk 0:01:31]} 17... Ba8 {[%clk 0:01:26.3]} 18. Qxa6 {[%clk 0:01:24.3]}
18... Nbd7 {[%clk 0:01:22.1]} 19. Nc4 {[%clk 0:00:56.2]} 19... Rc6 {[%clk
0:01:21.1]} 20. Qa7 {[%clk 0:00:54.7]} 20... g5 {[%clk 0:00:20.2]} 21. Bf2
{[%clk 0:00:53.9]} 21... Rfc8 {[%clk 0:00:21.1]} 22. Nb6 {[%clk 0:00:47]} 22...
Rxb6 {[%clk 0:00:04.1]} 23. Bxb6 {[%clk 0:00:46.4]} 23... Bc6 {[%clk 0:00:04.8]}
24. Bf2 {[%clk 0:00:39.4]} 24... Qd8 {[%clk 0:00:05]} 25. Rd1 {[%clk 0:00:33.9]}
25... Ra8 {[%clk 0:00:04.9]} 26. Qe3 {[%clk 0:00:34]} 26... Bxa4 {[%clk
0:00:04.1]} 27. Rxd6 {[%clk 0:00:31.7]} 27... Bxb3 {[%clk 0:00:02.9]} 28. Qxb3
{[%clk 0:00:31.9]} 28... Qc7 {[%clk 0:00:02.4]} 29. Rd1 {[%clk 0:00:28.4]} 29...
Nf8 {[%clk 0:00:02.8]} 30. Qxb4 {[%clk 0:00:24.2]} 30... Ne6 {[%clk 0:00:03.1]}
31. Qc3 {[%clk 0:00:21.6]} 31... Qb8 {[%clk 0:00:02.7]} 32. Be3 {[%clk
0:00:19.1]} 32... Nh5 {[%clk 0:00:02.4]} 33. g3 {[%clk 0:00:18.5]} 33... Qb5
{[%clk 0:00:02.6]} 34. Kf2 {[%clk 0:00:18.2]} 34... g4 {[%clk 0:00:02.2]} 35.
fxg4 {[%clk 0:00:12.6]} 35... Nf6 {[%clk 0:00:02.4]} 36. Qd3 {[%clk 0:00:13.2]}
36... Nxg4+ {[%clk 0:00:02.5]} 37. Kg2 {[%clk 0:00:09.9]} 37... Qc6 {[%clk
0:00:02.1]} 38. Rgf1 {[%clk 0:00:08.9]} 38... Qxc2+ {[%clk 0:00:02.4]} 39. Bf2
{[%clk 0:00:05.8]} 39... Qc6 {[%clk 0:00:01.7]} 40. h3 {[%clk 0:00:05.6]} 40...
Nf6 {[%clk 0:00:02.3]} 41. Rfe1 {[%clk 0:00:06.2]} 41... Ng5 {[%clk 0:00:02.6]}
42. Rc1 {[%clk 0:00:06.3]} 42... Qb7 {[%clk 0:00:02.7]} 43. h4 {[%clk
0:00:04.7]} 43... Ngxe4 {[%clk 0:00:02.7]} 44. Qf3 {[%clk 0:00:05.2]} 44... Qxb2
{[%clk 0:00:02.2]} 45. Rxe4 {[%clk 0:00:05.4]} 45... Nxe4 {[%clk 0:00:02.3]} 46.
Qxe4 {[%clk 0:00:05.4]} 46... Ra2 {[%clk 0:00:02.8]} 47. Rf1 {[%clk 0:00:05.5]}
47... Qb8 {[%clk 0:00:02.3]} 48. Kg1 {[%clk 0:00:04.7]} 48... Ra3 {[%clk
0:00:02.1]} 49. Re1 {[%clk 0:00:04.8]} 49... Qb2 {[%clk 0:00:01.5]} 50. Qxe5
{[%clk 0:00:04.3]} 50... Qd2 {[%clk 0:00:01.9]} 51. Qe8+ {[%clk 0:00:03.8]}
51... Kg7 {[%clk 0:00:02.3]} 52. Qe5+ {[%clk 0:00:04.1]} 52... Kg8 {[%clk
0:00:02.8]} 53. Qe2 {[%clk 0:00:04]} 53... Qb4 {[%clk 0:00:02.2]} 54. Rd1 {[%clk
0:00:03.7]} 54... Ra8 {[%clk 0:00:02]} 55. Qd3 {[%clk 0:00:02.9]} 55... Qg4
{[%clk 0:00:02.1]} 56. Qd4 {[%clk 0:00:02.7]} 56... Qf3 {[%clk 0:00:02.2]} 57.
Qd5 {[%clk 0:00:02.6]} 57... Qa3 {[%clk 0:00:02.8]} 58. Rd3 {[%clk 0:00:02.4]}
58... Qa1+ {[%clk 0:00:03.2]} 59. Kg2 {[%clk 0:00:03.1]} 59... Re8 {[%clk
0:00:03.6]} 60. Rf3 {[%clk 0:00:03.3]} 60... Qg7 {[%clk 0:00:02.5]} 61. Qf5
{[%clk 0:00:03.4]} 61... Re7 {[%clk 0:00:02.1]} 62. Rf4 {[%clk 0:00:03.7]} 62...
h5 {[%clk 0:00:02.1]} 63. Rf3 {[%clk 0:00:02.3]} 63... Re6 {[%clk 0:00:02]} 64.
Qxh5 {[%clk 0:00:02.4]} 64... Rg6 {[%clk 0:00:02.4]} 65. Qf5 {[%clk 0:00:02.6]}
65... Re6 {[%clk 0:00:01.7]} 66. Rf4 {[%clk 0:00:02.5]} 66... Rg6 {[%clk
0:00:02]} 67. Rf3 {[%clk 0:00:02.3]} 67... Re6 {[%clk 0:00:02.1]} 68. Qf4 {[%clk
0:00:02.7]} 68... Rg6 {[%clk 0:00:02.4]} 69. Qb8+ {[%clk 0:00:02.9]} 69... Kh7
{[%clk 0:00:02.4]} 70. Qe8 {[%clk 0:00:03.6]} 70... Rg4 {[%clk 0:00:02.1]} 71.
Qxf7 {[%clk 0:00:03.5]} 71... Rg6 {[%clk 0:00:01.3]} 72. Qxg7+ {[%clk
0:00:03.6]} 72... Rxg7 {[%clk 0:00:02.2]} 73. Kh3 {[%clk 0:00:04]} 73... Rd7
{[%clk 0:00:02.7]} 74. g4 {[%clk 0:00:04.3]} 74... Rd2 {[%clk 0:00:03.3]} 75.
Bg3 {[%clk 0:00:04.4]} 75... Rb2 {[%clk 0:00:03.8]} 76. g5 {[%clk 0:00:04.6]}
76... Kg6 {[%clk 0:00:04.3]} 77. Kg4 {[%clk 0:00:05.1]} 77... Rb4+ {[%clk
0:00:04.8]} 78. Rf4 {[%clk 0:00:05.2]} 78... Rb3 {[%clk 0:00:04.8]} 79. h5+
{[%clk 0:00:05.6]} 79... Kh7 {[%clk 0:00:05.5]} 80. Ra4 {[%clk 0:00:05.6]} 80...
Kh8 {[%clk 0:00:05.2]} 81. Ra8+ {[%clk 0:00:05.1]} 81... Kh7 {[%clk 0:00:05.4]}
82. Ra7+ {[%clk 0:00:05.5]} 82... Kh8 {[%clk 0:00:05.7]} 83. h6 {[%clk
0:00:05.6]} 83... Kg8 {[%clk 0:00:05.4]} 84. h7+ {[%clk 0:00:05.3]} 84... Kf8
{[%clk 0:00:03.1]} 85. h8=Q# {[%clk 0:00:05.5]} 1-0

[Event "Late-Titled-Tuesday-Blitz-April-30-2024"]
[Site "Chess.com"]
[Date "2024.04.30"]
[Round "6"]
[White "ACollins05"]
[Black "Durarbayli"]
[Result "0-1"]
[WhiteElo "2574"]
[BlackElo "2913"]
[TimeControl "180+1"]
[EndTime "15:09:20 PDT"]
[Termination "Durarbayli won by checkmate"]

1. Nf3 {[%clk 0:03:00.9]} 1... c5 {[%clk 0:02:58.3]} 2. e3 {[%clk 0:02:58.4]}
2... d5 {[%clk 0:02:56.4]} 3. b3 {[%clk 0:02:58.6]} 3... a6 {[%clk 0:02:56.3]}
4. Bb2 {[%clk 0:02:58.3]} 4... Nc6 {[%clk 0:02:56.9]} 5. d4 {[%clk 0:02:58.5]}
5... Nf6 {[%clk 0:02:57.5]} 6. Be2 {[%clk 0:02:57.8]} 6... cxd4 {[%clk
0:02:57.9]} 7. Nxd4 {[%clk 0:02:58.7]} 7... Nxd4 {[%clk 0:02:56.6]} 8. Bxd4
{[%clk 0:02:58.5]} 8... Bf5 {[%clk 0:02:56.3]} 9. O-O {[%clk 0:02:57.9]} 9... e6
{[%clk 0:02:56.7]} 10. c4 {[%clk 0:02:57.6]} 10... dxc4 {[%clk 0:02:56]} 11.
Bxc4 {[%clk 0:02:54.8]} 11... Bd6 {[%clk 0:02:55.7]} 12. Nd2 {[%clk 0:02:51.5]}
12... O-O {[%clk 0:02:47.4]} 13. Nf3 {[%clk 0:02:51]} 13... Ne4 {[%clk
0:02:46.3]} 14. Qe2 {[%clk 0:02:41.3]} 14... Qe7 {[%clk 0:02:39.4]} 15. Rfd1
{[%clk 0:02:40.4]} 15... Rac8 {[%clk 0:02:37.3]} 16. Bb2 {[%clk 0:02:37.6]}
16... Bb8 {[%clk 0:02:30]} 17. Rac1 {[%clk 0:02:35.6]} 17... h6 {[%clk
0:02:21.6]} 18. Bd3 {[%clk 0:02:31]} 18... Rxc1 {[%clk 0:02:17.7]} 19. Rxc1
{[%clk 0:02:27.7]} 19... Rd8 {[%clk 0:02:18.2]} 20. h3 {[%clk 0:02:09.5]} 20...
Qd6 {[%clk 0:02:00.5]} 21. Be5 {[%clk 0:01:30.9]} 21... Qxd3 {[%clk 0:02:00]}
22. Qxd3 {[%clk 0:01:30.3]} 22... Rxd3 {[%clk 0:02:00.9]} 23. Bxb8 {[%clk
0:01:30.6]} 23... Nc3 {[%clk 0:02:01.1]} 24. Ra1 {[%clk 0:01:13.2]} 24... f6
{[%clk 0:01:50.5]} 25. Bc7 {[%clk 0:01:09.8]} 25... Nd5 {[%clk 0:01:06.5]} 26.
Ba5 {[%clk 0:01:06.4]} 26... b6 {[%clk 0:01:06.8]} 27. Be1 {[%clk 0:01:04.9]}
27... e5 {[%clk 0:01:06.1]} 28. Rc1 {[%clk 0:00:59.7]} 28... a5 {[%clk
0:01:05.4]} 29. Kf1 {[%clk 0:00:56.7]} 29... a4 {[%clk 0:00:58.9]} 30. bxa4
{[%clk 0:00:48.2]} 30... Ra3 {[%clk 0:00:59.8]} 31. Rd1 {[%clk 0:00:42.1]} 31...
Bd3+ {[%clk 0:00:49.2]} 32. Kg1 {[%clk 0:00:37]} 32... e4 {[%clk 0:00:49.1]} 33.
Nd4 {[%clk 0:00:18.2]} 33... Rxa2 {[%clk 0:00:45.5]} 34. f3 {[%clk 0:00:11.6]}
34... Nxe3 {[%clk 0:00:37.3]} 35. Rd2 {[%clk 0:00:11.5]} 35... Rxa4 {[%clk
0:00:31.7]} 36. fxe4 {[%clk 0:00:09.2]} 36... Rxd4 {[%clk 0:00:27.9]} 37. Bf2
{[%clk 0:00:09.8]} 37... Nc4 {[%clk 0:00:26.1]} 38. Bxd4 {[%clk 0:00:09.4]}
38... Nxd2 {[%clk 0:00:26.1]} 39. Bxb6 {[%clk 0:00:10.3]} 39... Nxe4 {[%clk
0:00:25.7]} 40. Be3 {[%clk 0:00:11]} 40... h5 {[%clk 0:00:24.9]} 41. g4 {[%clk
0:00:11.2]} 41... h4 {[%clk 0:00:24.4]} 42. Kg2 {[%clk 0:00:11.4]} 42... g5
{[%clk 0:00:24.6]} 43. Kf3 {[%clk 0:00:11.5]} 43... Kf7 {[%clk 0:00:24.5]} 44.
Bd4 {[%clk 0:00:12]} 44... Nd6 {[%clk 0:00:22.5]} 45. Ke3 {[%clk 0:00:12.1]}
45... Bf1 {[%clk 0:00:22.6]} 46. Kf3 {[%clk 0:00:11.2]} 46... Bxh3 {[%clk
0:00:21.9]} 47. Bg1 {[%clk 0:00:12.1]} 47... Nc4 {[%clk 0:00:21]} 48. Bh2 {[%clk
0:00:13]} 48... Ne5+ {[%clk 0:00:21.2]} 49. Ke4 {[%clk 0:00:12.7]} 49... Ke6
{[%clk 0:00:20.3]} 50. Bg1 {[%clk 0:00:13.6]} 50... Bxg4 {[%clk 0:00:19.6]} 51.
Bh2 {[%clk 0:00:14.5]} 51... Bf3+ {[%clk 0:00:19.2]} 52. Ke3 {[%clk 0:00:14.6]}
52... Bd5 {[%clk 0:00:19.4]} 53. Bg1 {[%clk 0:00:14]} 53... Nf3 {[%clk
0:00:19.8]} 54. Bf2 {[%clk 0:00:13.3]} 54... h3 {[%clk 0:00:20.1]} 55. Bg3
{[%clk 0:00:13.7]} 55... Kf5 {[%clk 0:00:20.5]} 56. Kf2 {[%clk 0:00:13.4]} 56...
Kg4 {[%clk 0:00:20.6]} 57. Bc7 {[%clk 0:00:13.1]} 57... f5 {[%clk 0:00:19.9]}
58. Bb8 {[%clk 0:00:13.1]} 58... Be4 {[%clk 0:00:20.3]} 59. Bc7 {[%clk
0:00:13.4]} 59... Nd2 {[%clk 0:00:20.5]} 60. Bh2 {[%clk 0:00:13.1]} 60... Nc4
{[%clk 0:00:20.9]} 61. Bg3 {[%clk 0:00:12.5]} 61... Na5 {[%clk 0:00:20.2]} 62.
Bh2 {[%clk 0:00:13.1]} 62... Nc6 {[%clk 0:00:20.5]} 63. Ke3 {[%clk 0:00:13.1]}
63... Ne7 {[%clk 0:00:20.5]} 64. Bd6 {[%clk 0:00:12.1]} 64... Ng6 {[%clk
0:00:20.9]} 65. Bh2 {[%clk 0:00:11.7]} 65... Nh4 {[%clk 0:00:21]} 66. Kf2 {[%clk
0:00:12.1]} 66... Ng2 {[%clk 0:00:20.6]} 67. Bg3 {[%clk 0:00:11.7]} 67... Bd5
{[%clk 0:00:20.2]} 68. Bh2 {[%clk 0:00:12.1]} 68... Be6 {[%clk 0:00:20.7]} 69.
Bg3 {[%clk 0:00:11.2]} 69... Bf7 {[%clk 0:00:21.1]} 70. Bh2 {[%clk 0:00:11.8]}
70... Bg6 {[%clk 0:00:21.6]} 71. Bg3 {[%clk 0:00:12.3]} 71... Bh5 {[%clk
0:00:22]} 72. Bh2 {[%clk 0:00:12.8]} 72... Nh4 {[%clk 0:00:22.5]} 73. Bg3 {[%clk
0:00:12.2]} 73... Nf3 {[%clk 0:00:23]} 74. Bc7 {[%clk 0:00:10.8]} 74... f4
{[%clk 0:00:22.2]} 75. Bd8 {[%clk 0:00:10.8]} 75... Bg6 {[%clk 0:00:21.6]} 76.
Ba5 {[%clk 0:00:11]} 76... Bf5 {[%clk 0:00:21.8]} 77. Bb4 {[%clk 0:00:09.9]}
77... Be6 {[%clk 0:00:21.9]} 78. Bd6 {[%clk 0:00:10.3]} 78... Bd7 {[%clk
0:00:21.7]} 79. Bc7 {[%clk 0:00:10.8]} 79... Bc6 {[%clk 0:00:21.7]} 80. Bb8
{[%clk 0:00:10.8]} 80... Bb7 {[%clk 0:00:18.8]} 81. Bc7 {[%clk 0:00:10.2]} 81...
Ba8 {[%clk 0:00:18.5]} 82. Bb8 {[%clk 0:00:10.4]} 82... Kf5 {[%clk 0:00:18.5]}
83. Bc7 {[%clk 0:00:09.9]} 83... g4 {[%clk 0:00:17.9]} 84. Bb8 {[%clk
0:00:09.8]} 84... g3+ {[%clk 0:00:17.5]} 85. Ke2 {[%clk 0:00:10.5]} 85... Kg4
{[%clk 0:00:17.2]} 86. Bc7 {[%clk 0:00:10.3]} 86... h2 {[%clk 0:00:15.9]} 87.
Bb6 {[%clk 0:00:10.7]} 87... Bb7 {[%clk 0:00:16]} 88. Kd3 {[%clk 0:00:11.6]}
88... Bc6 {[%clk 0:00:15.3]} 89. Kc4 {[%clk 0:00:12.3]} 89... h1=N {[%clk
0:00:11.5]} 90. Kc5 {[%clk 0:00:13.2]} 90... Ba8 {[%clk 0:00:11.4]} 91. Kd6
{[%clk 0:00:13.4]} 91... g2 {[%clk 0:00:11.2]} 92. Ba7 {[%clk 0:00:13.8]} 92...
Be4 {[%clk 0:00:11.3]} 93. Bb6 {[%clk 0:00:14]} 93... g1=N {[%clk 0:00:09.9]}
94. Ba7 {[%clk 0:00:14.6]} 94... Ne2 {[%clk 0:00:09.8]} 95. Bb6 {[%clk
0:00:14.8]} 95... Nhg3 {[%clk 0:00:10]} 96. Ke7 {[%clk 0:00:14.4]} 96... Nf5+
{[%clk 0:00:10.7]} 97. Kf7 {[%clk 0:00:14.1]} 97... Ng5+ {[%clk 0:00:11.6]} 98.
Ke8 {[%clk 0:00:13.8]} 98... f3 {[%clk 0:00:12.1]} 99. Ba7 {[%clk 0:00:13.1]}
99... Nh3 {[%clk 0:00:12.7]} 100. Bb6 {[%clk 0:00:12.8]} 100... Nfd4 {[%clk
0:00:13.3]} 101. Bc7 {[%clk 0:00:12.5]} 101... f2 {[%clk 0:00:13.4]} 102. Bb6
{[%clk 0:00:13.2]} 102... f1=N {[%clk 0:00:10.3]} 103. Bxd4 {[%clk 0:00:11.6]}
103... Nxd4 {[%clk 0:00:10.1]} 104. Kd7 {[%clk 0:00:12.5]} 104... Ne3 {[%clk
0:00:10.2]} 105. Kd6 {[%clk 0:00:13.4]} 105... Nf3 {[%clk 0:00:09.6]} 106. Kc5
{[%clk 0:00:14.3]} 106... Bg6 {[%clk 0:00:09.5]} 107. Kd6 {[%clk 0:00:15.2]}
107... Nf4 {[%clk 0:00:09.7]} 108. Kc5 {[%clk 0:00:13.9]} 108... Kf5 {[%clk
0:00:10]} 109. Kd6 {[%clk 0:00:14.8]} 109... Ne5 {[%clk 0:00:09.8]} 110. Kc5
{[%clk 0:00:15.6]} 110... Ne6+ {[%clk 0:00:09.6]} 111. Kd6 {[%clk 0:00:16.5]}
111... N3c4+ {[%clk 0:00:09.7]} 112. Kd5 {[%clk 0:00:17]} 112... Nb6+ {[%clk
0:00:09.5]} 113. Kd6 {[%clk 0:00:17.9]} 113... Bh5 {[%clk 0:00:09.1]} 114. Ke7
{[%clk 0:00:16.3]} 114... Nc8# {[%clk 0:00:09]} 0-1

[Event "Late-Titled-Tuesday-Blitz-April-30-2024"]
[Site "Chess.com"]
[Date "2024.04.30"]
[Round "7"]
[White "Perecke"]
[Black "MNyuyu"]
[Result "0-1"]
[WhiteElo "2551"]
[BlackElo "2398"]
[TimeControl "180+1"]
[EndTime "15:12:13 PDT"]
[Termination "MNyuyu won by resignation"]

1. e4 {[%clk 0:02:54.8]} 1... d5 {[%clk 0:02:58.9]} 2. exd5 {[%clk 0:02:50.7]}
2... Qxd5 {[%clk 0:02:59.8]} 3. Nc3 {[%clk 0:02:50]} 3... Qd8 {[%clk 0:03:00.3]}
4. Bc4 {[%clk 0:02:49.8]} 4... c6 {[%clk 0:03:00.5]} 5. d4 {[%clk 0:02:48.3]}
5... Nf6 {[%clk 0:02:58.5]} 6. Nf3 {[%clk 0:02:48.7]} 6... Bf5 {[%clk
0:02:57.7]} 7. h3 {[%clk 0:02:47.3]} 7... e6 {[%clk 0:02:57.6]} 8. Bf4 {[%clk
0:02:44.9]} 8... Be7 {[%clk 0:02:55.2]} 9. Qd2 {[%clk 0:02:45]} 9... Nbd7 {[%clk
0:02:53.2]} 10. O-O-O {[%clk 0:02:42.1]} 10... Bb4 {[%clk 0:02:53.2]} 11. Qe3
{[%clk 0:02:34.6]} 11... Bxc3 {[%clk 0:02:49.2]} 12. Qxc3 {[%clk 0:02:33.7]}
12... Nd5 {[%clk 0:02:49.6]} 13. Qd2 {[%clk 0:02:32]} 13... Nxf4 {[%clk
0:02:48.9]} 14. Qxf4 {[%clk 0:02:32.9]} 14... O-O {[%clk 0:02:38.7]} 15. g4
{[%clk 0:02:32]} 15... Bg6 {[%clk 0:02:38.5]} 16. h4 {[%clk 0:02:32.3]} 16...
Nb6 {[%clk 0:02:23.9]} 17. Bb3 {[%clk 0:02:31.5]} 17... Nd5 {[%clk 0:02:24.2]}
18. a3 {[%clk 0:02:31.5]} 18... Nxf4 {[%clk 0:02:23.3]} 0-1

[Event "Late-Titled-Tuesday-Blitz-April-30-2024"]
[Site "Chess.com"]
[Date "2024.04.30"]
[Round "7"]
[White "FredddieCroderg"]
[Black "chessisveryfun1264"]
[Result "0-1"]
[WhiteElo "2445"]
[BlackElo "2626"]
[TimeControl "180+1"]
[EndTime "15:13:19 PDT"]
[Termination "chessisveryfun1264 won by resignation"]

1. e4 {[%clk 0:02:10.2]} 1... e6 {[%clk 0:03:00.9]} 2. d4 {[%clk 0:02:09.7]}
2... d5 {[%clk 0:02:55.5]} 3. exd5 {[%clk 0:02:10.6]} 3... exd5 {[%clk
0:02:56.3]} 4. Bd3 {[%clk 0:02:10.4]} 4... Nc6 {[%clk 0:02:57.1]} 5. c3 {[%clk
0:02:09.2]} 5... Bd6 {[%clk 0:02:56.8]} 6. Nf3 {[%clk 0:02:09.4]} 6... Nge7
{[%clk 0:02:57.5]} 7. O-O {[%clk 0:02:09.6]} 7... Bg4 {[%clk 0:02:58.2]} 8. Nbd2
{[%clk 0:02:00]} 8... Qd7 {[%clk 0:02:56.2]} 9. Re1 {[%clk 0:01:58.9]} 9...
O-O-O {[%clk 0:02:56.5]} 10. b4 {[%clk 0:01:58.3]} 10... Rde8 {[%clk 0:02:56.1]}
11. Qa4 {[%clk 0:01:56.7]} 11... Kb8 {[%clk 0:02:54.9]} 12. b5 {[%clk
0:01:55.9]} 12... Nd8 {[%clk 0:02:54.9]} 13. Nb3 {[%clk 0:01:54.4]} 13... Bxf3
{[%clk 0:02:46.7]} 14. gxf3 {[%clk 0:01:52.4]} 14... Qh3 {[%clk 0:02:46.2]} 15.
f4 {[%clk 0:01:45.2]} 15... Nf5 {[%clk 0:02:39.6]} 16. Rxe8 {[%clk 0:01:27.2]}
16... Nh4 {[%clk 0:02:31.2]} 0-1

[Event "Late-Titled-Tuesday-Blitz-April-30-2024"]
[Site "Chess.com"]
[Date "2024.04.30"]
[Round "7"]
[White "EsmeraldasAnderson03"]
[Black "Atanejhad"]
[Result "1-0"]
[WhiteElo "2524"]
[BlackElo "2440"]
[TimeControl "180+1"]
[EndTime "15:13:44 PDT"]
[Termination "EsmeraldasAnderson03 won by resignation"]

1. d4 {[%clk 0:03:00.9]} 1... d5 {[%clk 0:02:57.3]} 2. c4 {[%clk 0:03:01.3]}
2... e6 {[%clk 0:02:55.6]} 3. cxd5 {[%clk 0:03:01.9]} 3... exd5 {[%clk
0:02:55.1]} 4. Nc3 {[%clk 0:03:02.8]} 4... Nf6 {[%clk 0:02:54.2]} 5. Bg5 {[%clk
0:03:03.4]} 5... c6 {[%clk 0:02:54.6]} 6. Qc2 {[%clk 0:03:03.7]} 6... Be7 {[%clk
0:02:55]} 7. e3 {[%clk 0:03:04.2]} 7... O-O {[%clk 0:02:55.3]} 8. Bd3 {[%clk
0:03:04.9]} 8... h6 {[%clk 0:02:55.5]} 9. Bh4 {[%clk 0:03:05.3]} 9... Re8 {[%clk
0:02:55]} 10. Nf3 {[%clk 0:03:05.5]} 10... Ne4 {[%clk 0:02:54.7]} 11. Bxe7
{[%clk 0:03:04.3]} 11... Qxe7 {[%clk 0:02:55.6]} 12. O-O {[%clk 0:03:04.9]}
12... Bg4 {[%clk 0:02:36.9]} 13. Ne5 {[%clk 0:03:04]} 13... Be6 {[%clk
0:02:34.5]} 14. Nxe4 {[%clk 0:03:02.1]} 14... dxe4 {[%clk 0:02:34.5]} 15. Bxe4
{[%clk 0:03:03]} 15... Nd7 {[%clk 0:02:25.3]} 16. Nxd7 {[%clk 0:02:52.9]} 16...
Qxd7 {[%clk 0:02:23.9]} 17. b4 {[%clk 0:02:50.9]} 17... a6 {[%clk 0:02:22.9]}
18. a4 {[%clk 0:02:50.5]} 18... Rac8 {[%clk 0:02:12.9]} 19. Rfc1 {[%clk
0:02:49.6]} 19... Qe7 {[%clk 0:02:09.9]} 20. Rab1 {[%clk 0:02:48.2]} 20... Qg5
{[%clk 0:02:05.5]} 21. Qc5 {[%clk 0:02:45.7]} 21... Qf6 {[%clk 0:01:45.8]} 22.
Bf3 {[%clk 0:02:41.9]} 22... Red8 {[%clk 0:01:42.3]} 23. Qb6 {[%clk 0:02:39.6]}
23... Rd7 {[%clk 0:01:38.1]} 24. b5 {[%clk 0:02:39.6]} 24... axb5 {[%clk
0:01:37.9]} 25. axb5 {[%clk 0:02:39.6]} 25... Bd5 {[%clk 0:01:37.6]} 26. Bxd5
{[%clk 0:02:38.1]} 26... Rxd5 {[%clk 0:01:37]} 27. Qxb7 {[%clk 0:02:37.7]} 27...
Rf8 {[%clk 0:01:19.2]} 28. bxc6 {[%clk 0:02:37.3]} 28... Rg5 {[%clk 0:01:17.3]}
29. c7 {[%clk 0:02:37.5]} 1-0

[Event "Late-Titled-Tuesday-Blitz-April-30-2024"]
[Site "Chess.com"]
[Date "2024.04.30"]
[Round "7"]
[White "Yerkinio"]
[Black "Real_taiatai"]
[Result "1-0"]
[WhiteElo "2662"]
[BlackElo "2493"]
[TimeControl "180+1"]
[EndTime "15:13:47 PDT"]
[Termination "Yerkinio won by resignation"]

1. e4 {[%clk 0:03:00.9]} 1... e6 {[%clk 0:03:00.9]} 2. d4 {[%clk 0:02:59.5]}
2... d5 {[%clk 0:03:00.3]} 3. Nc3 {[%clk 0:03:00.1]} 3... Bb4 {[%clk 0:03:00]}
4. e5 {[%clk 0:03:00.3]} 4... Ne7 {[%clk 0:02:59.9]} 5. a3 {[%clk 0:03:00.5]}
5... Bxc3+ {[%clk 0:02:58.7]} 6. bxc3 {[%clk 0:03:01.4]} 6... b6 {[%clk
0:02:59.2]} 7. Nh3 {[%clk 0:03:01.4]} 7... Ba6 {[%clk 0:02:59]} 8. Bxa6 {[%clk
0:03:00.4]} 8... Nxa6 {[%clk 0:02:59.9]} 9. Nf4 {[%clk 0:03:00.7]} 9... c5
{[%clk 0:02:57.7]} 10. Nh5 {[%clk 0:03:00.2]} 10... Kf8 {[%clk 0:02:57.2]} 11.
Bg5 {[%clk 0:02:46.5]} 11... Qc7 {[%clk 0:02:55.8]} 12. O-O {[%clk 0:02:41.6]}
12... Nf5 {[%clk 0:02:52.9]} 13. g4 {[%clk 0:02:32.1]} 13... Ne7 {[%clk
0:02:49.7]} 14. Qd2 {[%clk 0:02:19.7]} 14... Nb8 {[%clk 0:02:46.4]} 15. Nxg7
{[%clk 0:02:17.5]} 15... h6 {[%clk 0:02:19.8]} 16. Bxh6 {[%clk 0:02:12.8]} 16...
Kg8 {[%clk 0:02:19.9]} 17. Qg5 {[%clk 0:02:09.4]} 17... Kh7 {[%clk 0:02:00.8]}
18. Ne8 {[%clk 0:02:01]} 18... Rg8 {[%clk 0:01:35.5]} 19. Nf6+ {[%clk
0:01:51.9]} 19... Kh8 {[%clk 0:01:36]} 20. Nxg8 {[%clk 0:01:51.2]} 1-0